Cogmind - Beta 15 @@@ ROGUE MODE // 2025.06.04 @ 20:04:53 Player: Mas5akr Result: Destroyed by S-27 Virus with Autogun Performance ------------- Evolutions (3) 1500 Regions Visited (9) 1800 Robots Destroyed (98) 490 Value Destroyed (2573) 2573 Prototype IDs (29) 580 Alien Tech Used (0) 0 Bonus (383) 383 TOTAL SCORE: 7326 Bonus ------- Follower Combat Kills 83 Aligned with FarCom 300 Cogmind --------- Core Integrity 0/700 Matter 258/300 Energy 85/100 System Corruption 4% Temperature Cool (0) Movement Flying (112) Ox1 Location -7/Lower Caves Parts ------- > --- POWER (1) -------- (None) > --- PROPULSION (3) --- VTOL Module Cesium-ion Thruster > --- UTILITY (7) ------ Small Storage Unit Utility Shielding Hacking Suite Hacking Suite Hacking Suite System Shield > --- WEAPON (2) ------- Great Axe > --- INVENTORY (8) ---- Carbon-fiber Leg Peak State ------------ > --- POWER ------------ Light Deuterium Engine > --- PROPULSION ------- Carbon-fiber Leg Improved Carbon-fiber Leg Improved Carbon-fiber Leg > --- UTILITY ---------- Medium Storage Unit Utility Shielding Medium Reactive Plating Hacking Suite Hacking Suite Hacking Suite System Shield > --- WEAPON ----------- Great Axe > --- INVENTORY -------- Aluminum Leg Aluminum Leg Carbon-fiber Leg Cesium-ion Thruster Small Storage Unit Seismic Detector Utility Shielding Medium Reactive Plating Hacking Suite Great Axe [Rating: 38] Favorites ----------- Power Light Deuterium Engine Engine Light Deuterium Engine Power Core Enhanced Nuclear Core Propulsion Aluminum Leg Leg Aluminum Leg Hover Unit Airjet Flight Unit Cesium-ion Thruster Utility Utility Shielding Storage Medium Storage Unit Processor Visual Processing Unit Hackware Hacking Suite Protection Utility Shielding Weapon Rocket Launcher Energy Gun Medium Laser Energy Cannon Advanced Beam Cannon Ballistic Gun Improved Assault Rifle Ballistic Cannon Improved Light Cannon Launcher Rocket Launcher Impact Weapon Maul Slashing Weapon Great Axe Special Melee Weapon Datajack Build | -11 -10 -10 -9 -9 -9 -8 -8 -7 -7 ------- Run | Yrd Mat Min Mat Min Exi Min Mat Fac Low Slots Evolved 6 | . . . 2 . . . 2 2 . Power . | . . . . . . . . . . Propulsion 1 | . . . . . . . 1 . . Utility 5 | . . . 2 . . . 1 2 . Weapon . | . . . . . . . . . . Parts Attached 71 | 6 3 . 19 3 1 . 16 18 5 Power 10 | 1 . . 3 . 1 . 1 3 1 Engine 9 | 1 . . 3 . 1 . 1 2 1 Core 1 | . . . . . . . . 1 . Reactor . | . . . . . . . . . . Propulsion 22 | 2 . . 2 1 . . 6 8 3 Treads . | . . . . . . . . . . Leg 17 | 2 . . 2 1 . . 6 6 . Wheel . | . . . . . . . . . . Hover 2 | . . . . . . . . 2 . Flight 3 | . . . . . . . . . 3 Utility 20 | 1 1 . 6 . . . 4 7 1 Device . | . . . . . . . . . . Storage 3 | 1 . . 1 . . . . . 1 Processor 4 | . . . 2 . . . 2 . . Hackware 6 | . . . . . . . 2 4 . Protection 7 | . 1 . 3 . . . . 3 . Artifact . | . . . . . . . . . . Weapon 19 | 2 2 . 8 2 . . 5 . . Energy Gun 4 | . 1 . 3 . . . . . . Energy Cannon 3 | . 1 . 2 . . . . . . Ballistic Gun 3 | 2 . . 1 . . . . . . Ballistic Cannon 1 | . . . 1 . . . . . . Launcher 4 | . . . . 2 . . 2 . . Special Weapon . | . . . . . . . . . . Impact Weapon 1 | . . . 1 . . . . . . Slashing Weapon 2 | . . . . . . . 2 . . Piercing Weapon . | . . . . . . . . . . Special Melee Weapon 1 | . . . . . . . 1 . . Unidentified Prototypes 4 | . . . 3 . . . . 1 . Parts Lost 34 | . . . 5 1 . 1 6 16 5 Power 6 | . . . 1 . . . 1 3 1 Propulsion 14 | . . . 1 1 . 1 1 7 3 Utility 8 | . . . . . . . 1 6 1 Weapon 6 | . . . 3 . . . 3 . . Highest Loss Streak 5 | . . . 2 1 . 1 3 5 5 To Critical Strikes 1 | . . . . . . 1 . . . Average Backups 8 | 2 3 5 8 10 9 10 9 8 3 Power 1 | . 1 1 1 2 1 1 . . . Propulsion 1 | . . . . . . . 1 3 2 Utility 3 | . . 2 2 4 4 5 5 3 . Weapon 2 | 1 1 2 3 4 4 3 1 . . Tool/Special . | . . . . . . . . . . Unused Backups 9 | . . . 3 1 . . 2 3 . Power 2 | . . . 2 . . . . . . Propulsion 1 | . . . . . . . . 1 . Utility 1 | . . . . . . . . 1 . Weapon 4 | . . . 1 1 . . 1 1 . Tool/Special 1 | . . . . . . . 1 . . Average Slot Usage (%) 89 | . 92 100 90 87 100 93 87 82 72 Engine 8 | . 14 14 8 . 11 11 6 5 4 Leg 20 | . 28 28 21 21 22 15 21 19 . Storage 10 | . 14 14 11 11 11 11 9 6 6 Processor 11 | . . . 11 22 22 22 14 . . Hackware 5 | . . . . . . . 8 26 37 Protection 12 | . 7 14 15 11 11 11 12 13 7 Energy Gun 2 | . 14 14 2 . . . . . . Energy Cannon 3 | . 10 14 6 1 . . . . . Ballistic Gun 2 | . 3 . 6 . . . . . . Ballistic Cannon 1 | . . . 3 . . . . . . Launcher 6 | . . . . 19 22 22 5 . . Slashing Weapon 2 | . . . . . . . 6 7 3 Peak Build Rating 38 | 6 7 7 17 13 16 17 25 38 31 Average Rating 16 | 3 6 7 14 12 15 15 21 29 26 On Entrance 13 | . 6 7 7 13 12 16 15 25 33 Naked Turns . | . . . . . . . . . . Heaviest Build 44 | 12 16 16 29 18 21 21 24 44 19 Greatest Support 51 | 20 20 20 20 20 20 20 40 51 17 Greatest Overweight (x) 8 | 3 . . 8 1 1 2 4 2 3 Average Overweight (x) . | . . . . . 1 1 . . . Largest Inventory Capacity 10 | 8 8 8 10 10 10 10 10 10 8 Average Capacity 9 | 7 8 8 9 10 10 10 10 9 7 Most Carried 10 | 6 5 5 10 10 10 10 10 10 5 Average Carried 8 | 3 3 5 8 9 9 10 9 8 3 Final Capacity 10 | 8 8 8 10 10 10 10 10 5 8 Final Carried 10 | 2 5 5 10 10 10 10 10 5 1 Class Distribution -------------------- 67% | Mutant 15% | Hacker-Mutant 8% | Scavenger-Mutant 4% | Skirmisher Dominant Class ---------------- Mutant | -10/Materials Mutant | -10/Mines Mutant | -9/Materials Mutant | -9/Mines Mutant | -9/Exiles Mutant | -8/Mines Scavenger-Mutant | -8/Materials Hacker-Mutant | -7/Factory Hacker-Mutant | -7/Lower Caves Resources | -11 -10 -10 -9 -9 -9 -8 -8 -7 -7 ----------- Run | Yrd Mat Min Mat Min Exi Min Mat Fac Low Matter Collected 1543 | 248 42 . 521 182 . 42 355 125 28 Remotely . | . . . . . . . . . . Salvage Created 2983 | . 203 43 1269 74 . 11 707 626 50 Parts 194 | . 14 4 75 5 . 2 54 36 4 Haulers Intercepted 8 | . . . 4 . . . 3 1 . Recyclers Shooed 3 | . . . 3 . . . . . . Parts Field Recycled . | . . . . . . . . . . Retrieved Matter . | . . . . . . . . . . Parts Self-Destructed 3 | . . . . . . . . . 3 Prevented . | . . . . . . . . . . Kills | -11 -10 -10 -9 -9 -9 -8 -8 -7 -7 ------- Run | Yrd Mat Min Mat Min Exi Min Mat Fac Low Combat Hostiles Destroyed 72 | . 9 3 28 6 . 4 10 10 2 Melee 19 | . . . 1 . . . 6 10 2 Guns 16 | . 3 1 12 . . . . . . Cannons 23 | . 6 2 14 . . 1 . . . AOE 13 | . . . . 6 . 3 4 . . Classes Destroyed 14 | . 2 . 7 2 . 1 1 1 . Builder 1 | . . . . . . . 1 . . Tunneler 2 | . . . 1 . . . . 1 . Hauler 8 | . . . 4 . . . 3 1 . Recycler 3 | . . . 1 . . . 1 1 . Operator 5 | . . . 1 . . . 3 1 . Watcher 11 | . 3 . 5 . . . 3 . . Swarmer 27 | . 9 3 10 . . 3 . . 2 Grunt 20 | . . . 9 1 . . 5 5 . Brawler 2 | . . . . 1 . . 1 . . Duelist 2 | . . . 2 . . . . . . Sentry 9 | . . . 7 . . . 2 . . Hunter 6 | . . . . . . 1 2 3 . Programmer 2 | . . . . . . . . 2 . Assembled 4 | . . . . 4 . . . . . Best Kill Streak 5 | . 3 3 5 2 . 3 4 3 2 Combat Bots Only 4 | . 3 3 4 2 . 3 3 3 2 Max Kills in Single Turn 3 | . 2 1 1 2 . 2 3 1 1 Gunslinging . | . . . . . . . . . . Exploded 2 | . . . . 2 . 2 1 . . Melee 1 | . . . 1 . . . 1 1 1 Uniques/NPCs Destroyed . | . . . . . . . . . . Combat | -11 -10 -10 -9 -9 -9 -8 -8 -7 -7 -------- Run | Yrd Mat Min Mat Min Exi Min Mat Fac Low Hostile Shots Fired 512 | . 53 6 123 2 . 11 74 188 55 Missed 170 | . 23 2 43 1 . 3 19 60 19 Hits 342 | . 30 4 80 1 . 8 55 128 36 Melee 6 | . . . 6 . . . . . . Projectile 336 | . 30 4 74 1 . 8 55 128 36 AOE 1 | . . . . . . . . 1 . Critical Strikes 9 | . . . 3 . . 1 3 2 . Damage Taken 4950 | . 244 30 1067 67 . 111 806 2074 551 Core 1193 | . 58 6 181 16 . 8 224 424 276 Absorbed by Shields . | . . . . . . . . . . Redirected to Shielding 91 | . 7 . 18 . . 2 25 30 9 Regen/Repaired (Parts) 25 | . . . 25 . . . . . . Core Remaining (%) 70 | 100 . 74 . . . 48 59 . . Volleys Fired 138 | . 29 3 85 7 . 5 9 . . Largest 2 | . 2 2 2 2 . 2 2 . . Hottest 113 | . 110 110 113 63 . 68 63 . . Shots Fired 265 | . 57 6 167 13 . 9 13 . . Gun 123 | . 28 3 92 . . . . . . Cannon 108 | . 29 3 75 . . 1 . . . Launcher 34 | . . . . 13 . 8 13 . . Special . | . . . . . . . . . . Kinetic 94 | . . . 94 . . . . . . Thermal 120 | . 57 6 56 . . 1 . . . Explosive 34 | . . . . 13 . 8 13 . . Electromagnetic 17 | . . . 17 . . . . . . Robot Hit Streak 12 | . 4 7 12 2 . 3 4 . . Robot Miss Streak 5 | . 4 . 5 2 . . 3 . . Penetration Max . | . . . . . . . . . . Secondary Targets . | . . . . . . . . . . Shots Hit Robots 216 | . 27 5 102 2 . 3 34 40 3 Core Hits 124 | . 11 3 51 9 . 6 27 15 2 Critical Kills . | . . . . . . . . . . Critical Parts Destroyed 1 | . . . 1 . . . . . . Critical Strikes 11 | . 2 . 5 . . . 3 1 . Burn 5 | . 2 . 3 . . . . . . Blast 1 | . . . 1 . . . . . . Smash 1 | . . . 1 . . . . . . Sever 4 | . . . . . . . 3 1 . Melee Attacks 108 | . . . 4 . . . 39 55 10 Impact 4 | . . . 4 . . . . . . Slashing 104 | . . . . . . . 39 55 10 Piercing . | . . . . . . . . . . Sneak Attacks 13 | . . . 1 . . . 7 5 . Combat Hostiles . | . . . . . . . . . . Follow-up Attacks . | . . . . . . . . . . Damage Inflicted 7245 | . 456 71 2110 334 . 221 2186 1751 116 Guns 1082 | . 213 37 832 . . . . . . Cannons 1297 | . 243 34 1000 . . 20 . . . Explosions 1404 | . . . 90 334 . 201 779 . . Melee 3444 | . . . 170 . . . 1407 1751 116 Ramming 18 | . . . 18 . . . . . . Kinetic 925 | . . . 925 . . . . . . Thermal 1226 | . 456 71 679 . . 20 . . . Explosive 1314 | . . . . 334 . 201 779 . . Electromagnetic 318 | . . . 318 . . . . . . Impact 170 | . . . 170 . . . . . . Slashing 3274 | . . . . . . . 1407 1751 116 Piercing . | . . . . . . . . . . Highest Corruption 4 | . . . . . . . 4 4 4 Average Corruption 2 | . . . . . . . 3 1 4 Corruption Purged . | . . . . . . . . . . Corruption Blocked . | . . . . . . . . . . Effects 2 | . . . . . . . 1 . 1 Matter Fused 1 | . . . . . . . 1 . . Data Loss (minor) 1 | . . . . . . . . . 1 Overload Shots . | . . . . . . . . . . Overflow Damage 330 | . 9 . 60 15 . 9 111 126 . Projectiles 24 | . 9 . 15 . . . . . . Explosions 24 | . . . . 15 . 9 . . . Melee 282 | . . . 45 . . . 111 126 . Knockbacks 4 | . . . 4 . . . . . . Impact 1 | . . . 1 . . . . . . Kinetic 3 | . . . 3 . . . . . . Secondary . | . . . . . . . . . . Self-Inflicted Damage 174 | . . . 67 57 . 18 32 . . Shots 9 | . . . 2 3 . 1 3 . . Rammed . | . . . . . . . . . . Targets Rammed 5 | . 1 . 4 . . . . . . Kicked 5 | . 1 . 4 . . . . . . Crushed . | . . . . . . . . . . Highest Temperature 384 | . 384 144 293 . . 24 5 . . Average Temperature 106 | . 137 75 90 . . 12 3 . . Received Heat Transfer 1218 | . . . 222 6 . . 270 693 27 Effects 2 | . 1 . 1 . . . . . . Shutdowns 1 | . 1 . . . . . . . . Energy Bleed 1 | . . . 1 . . . . . . Siege Activations . | . . . . . . . . . . Martial Activations . | . . . . . . . . . . Shielding Activations . | . . . . . . . . . . Robots Disrupted . | . . . . . . . . . . Combat Hostiles . | . . . . . . . . . . Robots Corrupted 1 | . . . 1 . . . . . . Combat Hostiles 1 | . . . 1 . . . . . . Parts Fried . | . . . . . . . . . . Impact Corruptions 2 | . . . 2 . . . . . . Robots Melted . | . . . . . . . . . . Combat Hostiles . | . . . . . . . . . . Parts Melted 5 | . . . 5 . . . . . . Heat Transferred 3282 | . 1295 185 1765 . . 37 . . . Parts Sabotaged . | . . . . . . . . . . Parts Stolen . | . . . . . . . . . . Parts Stripped . | . . . . . . . . . . Power Chain Reactions 2 | . . . 2 . . . . . . Alert | -11 -10 -10 -9 -9 -9 -8 -8 -7 -7 ------- Run | Yrd Mat Min Mat Min Exi Min Mat Fac Low Maximum Alert Level 1 | . . . 1 . . . . . . Low Security (%) 93 | 100 100 100 81 100 . 100 100 100 . Level 1 6 | . . . 18 . . . . . . Level 2 . | . . . . . . . . . . Level 3 . | . . . . . . . . . . Level 4 . | . . . . . . . . . . Level 5 . | . . . . . . . . . . High Security . | . . . . . . . . . . Max Security . | . . . . . . . . . . Peak Influence 331 | . 155 122 331 98 . 84 121 70 . Initial 63 | . . 37 27 63 . . . 14 . Average 66 | . 67 96 125 33 . 18 27 25 . Influence Increases 2691 | . 267 85 973 162 . 168 453 413 170 Destroy 0b10 Robot/C 1392 | . 180 60 620 40 . 80 172 200 40 Destroy 0b10 Robot/NC 147 | . 15 . 60 . . . 52 20 . Destroy Leader 382 | . 36 10 178 10 . 20 66 52 10 Allied During Kill 11 | . . . 11 . . . . . . Successful Hack 153 | . 5 . 47 . . . 41 60 . Disable Machine 102 | . 30 15 30 . . 15 12 . . Destroy Structure 234 | . 1 . 12 82 . 53 80 6 . Lose Combat Pursuer 270 | . . . 15 30 . . 30 75 120 Influence Decreases 2601 | . 171 109 881 326 . 168 421 443 82 Entered New Map 225 | . . 59 45 101 . . . 18 2 Time Decay 1881 | . 171 50 576 215 . 168 378 293 30 Lost Part 285 | . . . 50 10 . . 43 132 50 Lost Ally 10 | . . . 10 . . . . . . Purge Threat 200 | . . . 200 . . . . . . Squads Dispatched 11 | . . . 3 . . . 3 5 . Investigation 3 | . . . 2 . . . . 1 . Extermination 2 | . . . . . . . . 2 . Reinforcement 6 | . . . 1 . . . 3 2 . Assault . | . . . . . . . . . . Garrison . | . . . . . . . . . . Intercept . | . . . . . . . . . . Searches Triggered . | . . . . . . . . . . Construction Impeded . | . . . . . . . . . . Haulers Reinforced . | . . . . . . . . . . Active Scanning Responses . | . . . . . . . . . . Cargo Convoy Interrupts . | . . . . . . . . . . Stealth | -11 -10 -10 -9 -9 -9 -8 -8 -7 -7 --------- Run | Yrd Mat Min Mat Min Exi Min Mat Fac Low Distress Signals 9 | . . . 3 . . . 3 3 . Communications Jammed . | . . . . . . . . . . Distress Signals . | . . . . . . . . . . Times Spotted 125 | . 14 2 41 6 . 2 23 28 9 Peak Tracking Total 11 | . 4 . 4 2 . 1 4 7 11 Tactical Retreats 8 | . . . 1 1 . . 2 2 2 Traps | -11 -10 -10 -9 -9 -9 -8 -8 -7 -7 ------- Run | Yrd Mat Min Mat Min Exi Min Mat Fac Low Traps Triggered 3 | . . . 1 . . . 2 . . Indirectly . | . . . . . . . . . . Trap Hack Attempts . | . . . . . . . . . . Triggered . | . . . . . . . . . . Disarmed 4 | . 4 . . . . . . . . Reprogrammed . | . . . . . . . . . . Reused . | . . . . . . . . . . Traps Extracted . | . . . . . . . . . . Installed . | . . . . . . . . . . Triggered . | . . . . . . . . . . Machines | -11 -10 -10 -9 -9 -9 -8 -8 -7 -7 ---------- Run | Yrd Mat Min Mat Min Exi Min Mat Fac Low Machines Disabled 7 | . 2 1 2 . . 1 1 . . Max in Single Turn 1 | . 1 1 1 . . 1 1 . . Machines Repaired . | . . . . . . . . . . Machines Dismantled . | . . . . . . . . . . Machines Sabotaged . | . . . . . . . . . . Overloaded Fab Kills . | . . . . . . . . . . Hacking | -11 -10 -10 -9 -9 -9 -8 -8 -7 -7 --------- Run | Yrd Mat Min Mat Min Exi Min Mat Fac Low Machines Accessed 27 | . 4 . 10 . 4 . 4 5 . Terminals 18 | . 4 . 7 . . . 4 3 . Fabricators 1 | . . . . . . . . 1 . Repair Stations 2 | . . . 2 . . . . . . Recycling Units . | . . . . . . . . . . Scanalyzers 2 | . . . 1 . . . . 1 . Garrison Access . | . . . . . . . . . . Total Hacks 92 | . 8 . 43 . 9 . 16 16 . Successful 58 | . 5 . 28 . 9 . 10 6 . Failed 34 | . 3 . 15 . . . 6 10 . Catastrophic 10 | . 1 . 6 . . . 1 2 . Database Lockouts . | . . . . . . . . . . Manual 41 | . 6 . 15 . 1 . 9 10 . Terminals 58 | . 8 . 22 . . . 16 12 . Fabricators 1 | . . . . . . . . 1 . Repair Stations 4 | . . . 4 . . . . . . Recycling Units . | . . . . . . . . . . Scanalyzers 20 | . . . 17 . . . . 3 . Garrison Access . | . . . . . . . . . . Terminal Hacks 32 | . 3 . 7 . 9 . 9 4 . Record 8 | . . . . . 8 . . . . Prototype ID Bank 1 | . . . 1 . . . . . . Branch Access Points 2 | . . . . . . . 1 1 . Emergency Access Points 1 | . . . . . . . 1 . . Terminal Index 3 | . 1 . 1 . . . 1 . . Fabricator Index 1 | . . . 1 . . . . . . Scanalyzer Index 2 | . . . 1 . . . 1 . . Alert Level 2 | . . . 1 . . . 1 . . Unreport Threat 2 | . . . 2 . . . . . . Disarm Traps 1 | . 1 . . . . . . . . Maintenance Status 1 | . . . . . . . 1 . . Recall Extermination 1 | . . . . . . . . 1 . Recall Reinforcements 1 | . . . . . . . . 1 . Hauler Manifests 1 | . . . . . . . 1 . . Registered Components 1 | . . . . . . . 1 . . Registered Prototypes 1 | . . . . . . . 1 . . Zone Layout 2 | . 1 . . . . . . 1 . Proto ID Catalog 1 | . . . . . 1 . . . . Fabricator Hacks . | . . . . . . . . . . Repair Station Hacks 3 | . . . 3 . . . . . . Scan Component 2 | . . . 2 . . . . . . Repair 1 | . . . 1 . . . . . . Recycling Unit Hacks . | . . . . . . . . . . Scanalyzer 18 | . . . 16 . . . . 2 . Insert Component 9 | . . . 8 . . . . 1 . Analyze 9 | . . . 8 . . . . 1 . Garrison Access Hacks . | . . . . . . . . . . Unauthorized Hacks 5 | . 2 . 2 . . . 1 . . Terminals 5 | . 2 . 2 . . . 1 . . Botnet 2 | . 1 . 1 . . . . . . Operators 3 | . 1 . 1 . . . 1 . . Fabricators . | . . . . . . . . . . Repair Stations . | . . . . . . . . . . Recycling Units . | . . . . . . . . . . Scanalyzers . | . . . . . . . . . . Garrison Access . | . . . . . . . . . . Data Cores Recovered . | . . . . . . . . . . Used . | . . . . . . . . . . Hacking Detections 22 | . 4 . 9 . . . 4 5 . Full Trace Events 2 | . . . 1 . . . . 1 . Feedback Events . | . . . . . . . . . . Feedback Blocked . | . . . . . . . . . . Robot Schematics Acquired . | . . . . . . . . . . Robots Built . | . . . . . . . . . . Authchips . | . . . . . . . . . . Time . | . . . . . . . . . . Total Robot Build Rating . | . . . . . . . . . . Part Schematics Acquired 9 | . . . 8 . . . . 1 . Parts Built . | . . . . . . . . . . Authchips . | . . . . . . . . . . Time . | . . . . . . . . . . Total Part Build Rating . | . . . . . . . . . . Parts Repaired 1 | . . . 1 . . . . . . Time 26 | . . . 26 . . . . . . Parts Recycled . | . . . . . . . . . . Recycled Matter . | . . . . . . . . . . Retrieved Matter . | . . . . . . . . . . Retrieved Components . | . . . . . . . . . . Parts Scanalyzed 9 | . . . 8 . . . . 1 . Part Schematics Acquired 9 | . . . 8 . . . . 1 . Parts Damaged . | . . . . . . . . . . Bothacking | -11 -10 -10 -9 -9 -9 -8 -8 -7 -7 ------------ Run | Yrd Mat Min Mat Min Exi Min Mat Fac Low Used RIF Installer . | . . . . . . . . . . Robots Hacked . | . . . . . . . . . . Non-combat . | . . . . . . . . . . Combat . | . . . . . . . . . . Robot Hacks Applied . | . . . . . . . . . . Relay Couplers Released . | . . . . . . . . . . Fabnet Peak Effective % . | . . . . . . . . . . Robots Rewired . | . . . . . . . . . . Allies Hacked . | . . . . . . . . . . Hacks Repelled . | . . . . . . . . . . Allies | -11 -10 -10 -9 -9 -9 -8 -8 -7 -7 -------- Run | Yrd Mat Min Mat Min Exi Min Mat Fac Low Total Allies 3 | . . 3 . . . . . . . Largest Group 3 | . . 3 3 . . . . . . Highest-Rated Group 40 | . . 40 40 . . . . . . Highest-Rated Ally 16 | . . 16 16 . . . . . . Total Orders . | . . . . . . . . . . Ally Attacks 28 | . . . 28 . . . . . . Total Damage 248 | . . . 248 . . . . . . Kills 3 | . . . 3 . . . . . . Allies Corrupted . | . . . . . . . . . . Allies Melted . | . . . . . . . . . . Intel | -11 -10 -10 -9 -9 -9 -8 -8 -7 -7 ------- Run | Yrd Mat Min Mat Min Exi Min Mat Fac Low Active Infowar (turns) 5018 | . . . 2353 539 496 825 805 . . Optics 5018 | . . . 2353 539 496 825 805 . . Robot Analysis Total . | . . . . . . . . . . Derelict Logs Recovered 2 | . . 1 . 1 . . . . . Drone Launches . | . . . . . . . . . . Drone Recoveries . | . . . . . . . . . . Exploration | -11 -10 -10 -9 -9 -9 -8 -8 -7 -7 ------------- Run | Yrd Mat Min Mat Min Exi Min Mat Fac Low Turns Passed 7597 | 67 526 110 2578 539 496 825 1385 963 108 Spaces Moved 4043 | 49 354 85 1105 404 261 351 681 643 110 Core 35 | 22 . . 3 . . . 3 . 7 Treads . | . . . . . . . . . . Legs 3834 | 27 354 85 1102 404 261 351 678 572 . Wheels . | . . . . . . . . . . Hover 167 | . . . . . . . . 71 96 Flight 7 | . . . . . . . . . 7 Fastest Speed 29 | 50 120 120 120 120 190 190 120 56 29 Average Speed 154 | 111 120 120 184 120 190 225 149 119 65 Slowest Speed 450 | 200 120 120 450 190 190 260 260 260 200 Overloaded Moves . | . . . . . . . . . . Propulsion Burnouts . | . . . . . . . . . . Robots Hopped . | . . . . . . . . . . Potential Cave-ins 3 | . . . . 3 . . . . . Cave-ins Triggered . | . . . . . . . . . . Exploration Rate (%) 44 | 4 48 23 80 92 63 62 36 15 22 Regions Visited 9 Branch Regions 5 Pre-discovered Areas 3 | . . 1 . 1 1 . . . . Known Exits Taken 6 | . . . 1 1 1 1 1 1 . Unknown Exits Taken 3 | 1 1 1 . . . . . . . Scrap Searched 7 | . . 1 . 4 . 1 . . 1 Spaces Dug 58 | . . . . 20 . 27 5 6 . Terrain Destroyed 326 | . . . 8 147 . 84 81 6 . Melee 11 | . . . . . . . 5 6 . Projectile . | . . . . . . . . . . AOE 315 | . . . 8 147 . 84 76 . . Terrain Rammed . | . . . . . . . . . . Walls Destroyed . | . . . . . . . . . . Machines Disabled . | . . . . . . . . . . Actions | -11 -10 -10 -9 -9 -9 -8 -8 -7 -7 --------- Run | Yrd Mat Min Mat Min Exi Min Mat Fac Low Total 4928 | 60 398 87 1470 440 262 375 970 737 129 Wait 452 | . 4 . 202 25 . 14 203 4 . Move 4034 | 48 353 84 1104 403 260 350 680 642 110 Hop . | . . . . . . . . . . Pick Up 71 | 6 6 . 29 1 1 1 13 13 1 Fast Attach 10 | 2 . . 1 1 . 1 3 2 . Attach 48 | 4 1 . 14 . 1 . 8 14 6 Detach 1 | . . . . . . . . . 1 Swap 26 | . 2 . 9 2 . 2 7 4 . Drop 35 | . 2 . 18 1 . 2 8 3 1 Fire 138 | . 29 3 85 7 . 5 9 . . Melee 108 | . . . 4 . . . 39 55 10 Ram . | . . . . . . . . . . Kick 5 | . 1 . 4 . . . . . . Crush . | . . . . . . . . . . Escape Stasis . | . . . . . . . . . . Rewire . | . . . . . . . . . . Trap . | . . . . . . . . . . Miscellaneous . | . . . . . . . . . . Route ------- -11/Scrapyard -10/Materials (discovered 2 exits: *Mat / [*Min]) -10/Mines -9/Materials (discovered 3 exits: *Mat x2 / *Min) -9/Mines (discovered 2 exits: *Mat / *Exi) -9/Exiles -8/Mines -8/Materials (discovered 3 exits: *Fac / Sto x2) -7/Factory (discovered 2 exits: *Low x2) -7/Lower Caves History --------- Turn | Location | Event 4 | -11/Scrapyard | Discovered new exit (range 15) 68 | -11/Scrapyard | Entered Materials 111 | -10/Materials | Discovered new exit (range 6) 309 | -10/Materials | Build established: Mutant 316 | -10/Materials | Discovered new exit (range 15) 594 | -10/Materials | Entered Mines 686 | -10/Mines | Discovered new exit (range 8) 697 | -10/Mines | Assisted by bots powering up and referring to "LRC-V3" 704 | -10/Mines | Entered Materials 704 | -9/Materials | Accompanied by 3 allies 704 | -9/Materials | Evolved 2 slots: Utility x2 1536 | -9/Materials | Discovered new exit (range 13) 2272 | -9/Materials | Repaired Utility Shielding 2998 | -9/Materials | Discovered new exit (range 12) 3031 | -9/Materials | Identified exit to Materials 3269 | -9/Materials | Discovered new exit (range 9) 3281 | -9/Materials | Identified exit to Mines 3282 | -9/Materials | Entered Mines 3328 | -9/Mines | Assembled infested the area 3384 | -9/Mines | Learned location of Storage (-8) 3449 | -9/Mines | Discovered exit to Materials (range 11) 3816 | -9/Mines | Deemed a non-threat by the Exiles lab entrance 3816 | -9/Mines | Discovered new exit (range 5) 3819 | -9/Mines | Identified exit to Exiles 3821 | -9/Mines | Entered Exiles 3872 | -9/Exiles | Met 8R-AWN 3898 | -9/Exiles | Met EX-HEX 3957 | -9/Exiles | Met EX-BIN 3980 | -9/Exiles | Aligned with FarCom system 3982 | -9/Exiles | Given EX-Vault access code 4026 | -9/Exiles | Opened EX-Vault 4039 | -9/Exiles | Found 0b10 Alert Chip 4078 | -9/Exiles | Warned to stay clear of 0b10 Research branches 4196 | -9/Exiles | Met EX-DEC 4211 | -9/Exiles | Learned location of Zion (-6) 4295 | -9/Exiles | Discovered new exit (range 12) 4316 | -9/Exiles | Identified exit to Mines 4317 | -9/Exiles | Left Exiles lab with 0b10 Alert Chip 4317 | -9/Exiles | Entered Mines 4320 | -8/Mines | Core integrity fell below 50% 5106 | -8/Mines | Discovered exit to Materials (range 14) 5142 | -8/Mines | Entered Materials 5142 | -8/Materials | Evolved 2 slots: Propulsion x1, Utility x1 5428 | -8/Materials | Build established: Skirmisher 5428 | -8/Materials | Discovered new exit (range 11) 5457 | -8/Materials | Identified exit to Factory 5572 | -8/Materials | Lost 3 parts (1p1n1w) 5777 | -8/Materials | Identified exit to Storage 6032 | -8/Materials | Build established: Scavenger-Mutant 6527 | -8/Materials | Entered Factory 6527 | -7/Factory | Evolved 2 slots: Utility x2 6709 | -7/Factory | Build established: Hacker-Mutant 6763 | -7/Factory | Lost 3 parts (1p1n1u) 6956 | -7/Factory | Lost 5 parts (1p2n2u) 7433 | -7/Factory | Core integrity fell below 50% 7462 | -7/Factory | Identified exit to Lower Caves 7472 | -7/Factory | Lost 5 parts (1p2n2u) 7490 | -7/Factory | Entered Lower Caves 7557 | -7/Lower Caves | Core integrity fell below 20% 7598 | -7/Lower Caves | Destroyed by S-27 Virus with Autogun Last Messages --------------- GOAL=ESCAPE Dropped Faulty Enh. Nuclear Core. M-14 Sweeper reprogrammed Fire Trap. System corrupted: Component data lost. Searching scrap... Found Trap Scanner. Found Shock Absorption System. Found 62 Matter. Gravmag System destroyed. S-27 Virus destroyed. Airjet destroyed. Deuterium Engine destroyed. S-27 Virus destroyed. VTOL Module fries itself beyond repair. Autogun fries itself beyond repair. Lgt. Nuclear Core fries itself beyond repair. Acquired 28 matter. Acquired VTOL Module. System Shield destroyed. Cesium-ion Thruster destroyed. Map ----- +----------------------------------------------------+ | | | | | | | | | | | | | | | | | ?????????????????????????????????????????????????? | | ?????????????????????????????????????????????????? | | ?????????????????????????????????????????????????? | | ?????????????????????????????????????????????????? | | ?????????????????????????????????????????????????? | | ?????????????????????????????????????????????????? | | ?????????????????????????????????????????????????? | | ?????????????????????????????????????????????????? | | ?????????????????????????????????????????????????? | | ?????????????????????????????????????????????????? | | ?????????????????????????????????????????????????? | | ?????????????????????????????????????????????????? | | ?????????????????????????????????????????????????? | | ?????????????????????????????????????????????????? | | ????????????????????????####????????????????????## | | ?????????????????######## #####???????????????## | | ????????????????## ##?????###??????# | | ???????????????## @s #?????# ###????# | | ??????????????## ###??#### ####?# | | ?????????????## % #???## #??## | | ????????????## ### ### #???# #?## | | ????????????# #?## #??####?# ### | | ????????????# #??# #?## #?# | | ???????????# ### ### #?# ## # | | ??????????# ### ## #?# ## ##### | | ?????????# #?# #?## ####???# | | ?????????# #?## ##### ###???# # | | ?????????# ###??# #???## | | ?????????# #????## ! ##????? | | ???????? #?????# " !% "## #?????? | | ??????? ?????# """"" "## # #?# | | ?????? ## ?????# " "" ## # #?## | | ????? ??# ?????# #" """ ""# # ?? | | ???????? ### #?????# ##" "" """" | | ???????####??# ??????# ## "" " ## # | | ?????????????# #?????? ## #??## | | ?????????????# ?????? ???? | | ?????????????? ?????## ? ### ??? | | ??????????????????????## ?##### ######??# #?? | | ???????????????????????# ????? #??????????????? | | ???????????????????????? ?????? ???????????????? | | ??????????????????????????????? ???????????????? | +----------------------------------------------------+ Best States ------------- Heat Dissipation 34 Energy Generation 14 Energy Capacity 280 Matter Stores 300 Matter Capacity 300 Sight Range 18 Terrain Scan Density 10 Armor Coverage 225 Resistance: KI 30 Utility Shielding 33 Evasion (%) 55 Offensive Hacking 30 Defensive Hacking 20 Item Schematics ----------------- Rocket Launcher | -9/Materials | Scanalyzed Utility Shielding | -9/Materials | Scanalyzed Sml. Storage Unit | -9/Materials | Scanalyzed Adv. Beam Cannon | -9/Materials | Scanalyzed Lgt. Deuterium Engine | -9/Materials | Scanalyzed Maul | -9/Materials | Scanalyzed Aluminum Leg | -9/Materials | Scanalyzed Hvy. Assault Rifle | -9/Materials | Scanalyzed Hacking Suite | -7/Factory | Scanalyzed Robot Schematics ------------------ None Fabricated ------------ Nothing Repaired ---------- Utility Shielding | 50% | -9/Materials Alien Tech Used ----------------- None Achievements -------------- None Challenges ------------ None Game ------ Seed PersonalRecyclingDrivehammer Manual? 0 Play Time 00:51:17 Cumulative 37.7 hours Start 2025.06.04 @ 19:09:36 End 2025.06.04 @ 20:04:53 Sessions 1 Manual Loads 0 Difficulty Rogue Special Mode None Game No. 36 Rogue 36 Adventurer 0 Explorer 0 Win Type - Total 0 Types 0/0/0/0/0/0/0/0/0/0 Lore% 24 Gallery% 32 Achievement% 37 Wizard Run 0 Options --------- Layout 1 ASCII 0 Keyboard 0 Movement Mouse Keybinds 0 Fullscreen 1 Font 24/Smallcaps Map View 50x35 Zoom Use 0% Tactical HUD 0 Map Filters NONE Filters NONE Steam 1 RUN: e2085bdd-e0f1-4942-b8ab-d37db8b9dd3e